fUSD/lending_fUSD_20260612
["ID","MTS","AMOUNT","RATE_DAILY","PERIOD"]
[424868265,1781217050000,-157.611457,0.00033972,7]
[424868308,1781217050000,-1227.0,0.00034185,2]
[424868288,1781217050000,-6347.26,0.00034095,2]
[424868311,1781217050000,-185.1,0.00034191,2]
[424868293,1781217050000,-151.0,0.00034153,30]
[424868261,1781217050000,-160.0,0.00033927,11]
[424868291,1781217050000,-3496.27,0.0003411,120]
[424868268,1781217050000,-151.0,0.00033972,7]
[424868264,1781217050000,-157.611457,0.00033972,7]
[424868263,1781217050000,-157.611457,0.00033972,7]
[424868272,1781217050000,-387.56306584,0.0003398,30]
[424868271,1781217050000,-1570.0,0.00033973,30]
[424868282,1781217050000,-708.09039993,0.00034,60]
[424868273,1781217050000,-2710.41619883,0.00034,3]
[424868275,1781217050000,-708.09039993,0.00034,30]
[424868276,1781217050000,-708.09039993,0.00034,30]
[424868279,1781217050000,-708.09039993,0.00034,30]
[424868277,1781217050000,-708.09039993,0.00034,30]
[424868262,1781217050000,-910.5458154,0.00033946,2]
[424868274,1781217050000,-708.09039993,0.00034,30]
[424868281,1781217050000,-708.09039993,0.00034,60]
[424868294,1781217050000,-151.0,0.00034153,30]
[424868283,1781217050000,-3000.0,0.00034,3]
[424868295,1781217050000,-299.0,0.00034153,30]
[424868287,1781217050000,-200.0,0.00034086,10]
[424868289,1781217050000,-1139.24,0.00034095,7]
[424868292,1781217050000,-675.0,0.00034153,30]
[424868285,1781217050000,-150.0,0.00034002,2]
[424868284,1781217050000,-1134.0,0.00034,7]
[424868280,1781217050000,-708.09039993,0.00034,60]
[424868278,1781217050000,-708.09039993,0.00034,30]
[424868286,1781217050000,-152.124797,0.00034078,120]
[424868347,1781217051000,-396.12,0.00034208,2]
[424868345,1781217051000,-575.31,0.00034208,2]
[424868348,1781217051000,-396.12,0.00034208,2]
[424868350,1781217051000,-482.23,0.00034208,2]
[424868351,1781217051000,-644.05,0.00034208,2]
[424868349,1781217051000,-397.02,0.00034208,2]
[424868354,1781217051000,-185.09,0.00034208,2]
[424868353,1781217051000,-644.05,0.00034208,2]
[424868352,1781217051000,-185.09,0.00034208,2]
[424868360,1781217051000,-482.22,0.00034208,2]
[424868358,1781217051000,-644.05,0.00034208,2]
[424868356,1781217051000,-575.42,0.00034208,2]
[424868359,1781217051000,-396.12,0.00034208,2]
[424868361,1781217051000,-575.42,0.00034208,2]
[424868355,1781217051000,-396.12,0.00034208,2]
[424868362,1781217051000,-396.12,0.00034208,2]
[424868363,1781217051000,-482.22,0.00034208,2]
[424868346,1781217051000,-575.42,0.00034208,2]
[424868365,1781217051000,-645.45,0.00034208,2]
[424868357,1781217051000,-482.22,0.00034208,2]
[424868344,1781217051000,-644.05,0.00034208,2]
[424868330,1781217051000,-644.05,0.00034201,2]
[424868342,1781217051000,-396.12,0.00034208,2]
[424868364,1781217051000,-575.42,0.00034208,2]
[424868322,1781217051000,-482.22,0.00034201,2]
[424868325,1781217051000,-644.05,0.00034201,2]
[424868324,1781217051000,-575.42,0.00034201,2]
[424868328,1781217051000,-396.12,0.00034201,2]
[424868323,1781217051000,-644.05,0.00034201,2]
[424868327,1781217051000,-644.05,0.00034201,2]
[424868329,1781217051000,-396.12,0.00034201,2]
[424868326,1781217051000,-575.42,0.00034201,2]
[424868332,1781217051000,-482.22,0.00034201,2]
[424868331,1781217051000,-644.05,0.00034201,2]
[424868333,1781217051000,-396.12,0.00034208,2]
[424868335,1781217051000,-396.12,0.00034208,2]
[424868334,1781217051000,-396.12,0.00034208,2]
[424868339,1781217051000,-482.22,0.00034208,2]
[424868336,1781217051000,-482.22,0.00034208,2]
[424868341,1781217051000,-396.12,0.00034208,2]
[424868337,1781217051000,-644.05,0.00034208,2]
[424868338,1781217051000,-396.12,0.00034208,2]
[424868343,1781217051000,-575.42,0.00034208,2]
[424868366,1781217051000,-482.22,0.00034208,2]
[424868340,1781217051000,-644.05,0.00034208,2]
[424868371,1781217051000,-644.05,0.00034208,2]
[424868400,1781217051000,-396.13,0.00034209,2]
[424868393,1781217051000,-644.05,0.00034209,2]
[424868392,1781217051000,-644.05,0.00034209,2]
[424868395,1781217051000,-575.42,0.00034209,2]
[424868397,1781217051000,-185.09,0.00034209,2]
[424868396,1781217051000,-644.05,0.00034209,2]
[424868398,1781217051000,-482.22,0.00034209,2]
[424868394,1781217051000,-482.22,0.00034209,2]
[424868401,1781217051000,-644.05,0.00034209,2]
[424868399,1781217051000,-396.12,0.00034209,2]
[424868404,1781217051000,-644.05,0.00034209,2]
[424868402,1781217051000,-482.22,0.00034209,2]
[424868411,1781217051000,-396.12,0.00034209,2]
[424868403,1781217051000,-185.09,0.00034209,2]
[424868407,1781217051000,-482.22,0.00034209,2]
[424868405,1781217051000,-644.07,0.00034209,2]
[424868410,1781217051000,-644.05,0.00034209,2]
[424868408,1781217051000,-396.12,0.00034209,2]
[424868412,1781217051000,-482.22,0.00034209,2]
[424868369,1781217051000,-644.05,0.00034208,2]
[424868406,1781217051000,-575.42,0.00034209,2]
[424868389,1781217051000,-643.92,0.00034208,2]
[424868409,1781217051000,-482.22,0.00034209,2]
[424868386,1781217051000,-575.42,0.00034208,2]
[424868390,1781217051000,-644.05,0.00034208,2]
[424868368,1781217051000,-575.42,0.00034208,2]
[424868370,1781217051000,-396.12,0.00034208,2]
[424868367,1781217051000,-644.05,0.00034208,2]
[424868372,1781217051000,-482.22,0.00034208,2]
[424868373,1781217051000,-575.42,0.00034208,2]
[424868374,1781217051000,-573.23,0.00034208,2]
[424868375,1781217051000,-482.22,0.00034208,2]
[424868381,1781217051000,-644.05,0.00034208,2]
[424868380,1781217051000,-644.05,0.00034208,2]
[424868378,1781217051000,-482.23,0.00034208,2]
[424868377,1781217051000,-482.22,0.00034208,2]
[424868376,1781217051000,-396.12,0.00034208,2]
[424868382,1781217051000,-482.22,0.00034208,2]
[424868383,1781217051000,-185.09,0.00034208,2]
[424868384,1781217051000,-575.45,0.00034208,2]
[424868385,1781217051000,-575.42,0.00034208,2]
[424868388,1781217051000,-482.22,0.00034208,2]
[424868387,1781217051000,-482.22,0.00034208,2]
[424868391,1781217051000,-644.07,0.00034209,2]
[424868379,1781217051000,-644.05,0.00034208,2]
[424868420,1781217052000,-335.74,0.00034219,7]
[424868413,1781217052000,-644.05,0.00034209,2]
[424868415,1781217052000,-576.06,0.00034209,2]
[424868414,1781217052000,-396.12,0.00034209,2]
[424868417,1781217052000,-482.54,0.00034209,2]
[424868419,1781217052000,-502.0,0.00034215,17]
[424868416,1781217052000,-396.12,0.00034209,2]
[424868422,1781217052000,-1570.0,0.00034247,30]
[424868421,1781217052000,-264.72,0.00034246,30]
[424868424,1781217052000,-300.0,0.0003433,10]
[424868425,1781217052000,-433595.2622547,0.00034331,2]
[424868423,1781217052000,-666.0,0.0003433,30]
[424868426,1781217052000,-15490.79303713,0.00034331,2]
[424868418,1781217052000,-575.42,0.00034209,2]
[424868444,1781217053000,-407.0,0.00034453,2]
[424868443,1781217053000,-10624.1020305,0.0003442,2]
[424868445,1781217053000,-407.0,0.00034453,2]
[424868442,1781217053000,-300.0,0.00034419,10]
[424868452,1781217053000,-300.0,0.00034472,2]
[424868449,1781217053000,-1451.861569,0.00034472,7]
[424868441,1781217053000,-290.3986294,0.00034388,2]
[424868448,1781217053000,-1451.861569,0.00034472,7]
[424868450,1781217053000,-1451.861569,0.00034472,7]
[424868446,1781217053000,-407.0,0.00034453,2]
[424868447,1781217053000,-250.0,0.00034468,7]
[424868437,1781217053000,-157.635871,0.00034331,7]
[424868439,1781217053000,-737.559343,0.00034378,120]
[424868436,1781217053000,-157.635871,0.00034331,7]
[424868435,1781217053000,-157.635871,0.00034331,7]
[424868434,1781217053000,-157.635871,0.00034331,7]
[424868438,1781217053000,-151.0,0.00034331,7]
[424868432,1781217053000,-151.0,0.00034331,7]
[424868433,1781217053000,-251.225547,0.00034331,7]
[424868429,1781217053000,-251.225547,0.00034331,7]
[424868430,1781217053000,-251.225547,0.00034331,7]
[424868427,1781217053000,-13299.34361015,0.00034331,2]
[424868431,1781217053000,-251.225547,0.00034331,7]
[424868428,1781217053000,-130162.10853112,0.00034331,2]
[424868440,1781217053000,-1104.10242787,0.00034388,2]
[424868454,1781217053000,-300.0,0.00034472,2]
[424868457,1781217053000,-300.0,0.00034472,2]
[424868451,1781217053000,-1451.861569,0.00034472,7]
[424868453,1781217053000,-300.0,0.00034472,2]
[424868479,1781217053000,-494.26340531,0.00034472,2]
[424868477,1781217053000,-300.0,0.00034472,2]
[424868478,1781217053000,-300.0,0.00034472,2]
[424868476,1781217053000,-300.0,0.00034472,2]
[424868474,1781217053000,-300.0,0.00034472,2]
[424868471,1781217053000,-300.0,0.00034472,2]
[424868473,1781217053000,-300.0,0.00034472,2]
[424868480,1781217053000,-300.0,0.00034472,2]
[424868472,1781217053000,-300.0,0.00034472,2]
[424868463,1781217053000,-300.0,0.00034472,2]
[424868470,1781217053000,-300.0,0.00034472,2]
[424868475,1781217053000,-300.0,0.00034472,2]
[424868468,1781217053000,-300.0,0.00034472,2]
[424868469,1781217053000,-300.0,0.00034472,2]
[424868461,1781217053000,-300.0,0.00034472,2]
[424868456,1781217053000,-445.16888154,0.00034472,2]
[424868459,1781217053000,-300.0,0.00034472,2]
[424868455,1781217053000,-300.0,0.00034472,2]
[424868458,1781217053000,-300.0,0.00034472,2]
[424868467,1781217053000,-300.0,0.00034472,2]
[424868465,1781217053000,-1098.78445781,0.00034472,2]
[424868466,1781217053000,-300.0,0.00034472,2]
[424868464,1781217053000,-300.0,0.00034472,2]
[424868462,1781217053000,-834.28394638,0.00034472,2]
[424868460,1781217053000,-300.0,0.00034472,2]
[424868511,1781217054000,-867.43380422,0.00034472,2]
[424868516,1781217054000,-300.0,0.00034472,2]
[424868509,1781217054000,-300.0,0.00034472,2]
[424868508,1781217054000,-300.0,0.00034472,2]
[424868507,1781217054000,-300.0,0.00034472,2]
[424868510,1781217054000,-300.0,0.00034472,2]
[424868512,1781217054000,-952.35439639,0.00034472,2]
[424868514,1781217054000,-300.0,0.00034472,2]
[424868513,1781217054000,-1803.5984271,0.00034472,2]
[424868518,1781217054000,-310.59667688,0.00034472,2]
[424868521,1781217054000,-1345.05845532,0.00034472,2]
[424868515,1781217054000,-300.0,0.00034472,2]
[424868517,1781217054000,-300.0,0.00034472,2]
[424868520,1781217054000,-300.0,0.00034472,2]
[424868522,1781217054000,-300.0,0.00034472,2]
[424868525,1781217054000,-596.07542324,0.00034472,2]
[424868523,1781217054000,-300.0,0.00034472,2]
[424868524,1781217054000,-300.0,0.00034472,2]
[424868530,1781217054000,-583.05784622,0.00034472,2]
[424868506,1781217054000,-528.57447289,0.00034472,2]
[424868519,1781217054000,-300.0,0.00034472,2]
[424868505,1781217054000,-345.05091273,0.00034472,2]
[424868492,1781217054000,-300.0,0.00034472,2]
[424868504,1781217054000,-300.0,0.00034472,2]
[424868482,1781217054000,-300.0,0.00034472,2]
[424868481,1781217054000,-300.0,0.00034472,2]
[424868483,1781217054000,-606.59953242,0.00034472,2]
[424868485,1781217054000,-300.0,0.00034472,2]
[424868488,1781217054000,-300.0,0.00034472,2]
[424868490,1781217054000,-300.0,0.00034472,2]
[424868484,1781217054000,-300.0,0.00034472,2]
[424868487,1781217054000,-300.0,0.00034472,2]
[424868486,1781217054000,-300.0,0.00034472,2]
[424868489,1781217054000,-535.71068605,0.00034472,2]
[424868491,1781217054000,-728.64234087,0.00034472,2]
[424868496,1781217054000,-300.5481852,0.00034472,2]
[424868495,1781217054000,-302.97984289,0.00034472,2]
[424868493,1781217054000,-302.76104972,0.00034472,2]
[424868494,1781217054000,-300.0,0.00034472,2]
[424868497,1781217054000,-301.53549973,0.00034472,2]
[424868526,1781217054000,-300.0,0.00034472,2]
[424868499,1781217054000,-300.0,0.00034472,2]
[424868500,1781217054000,-300.0,0.00034472,2]
[424868502,1781217054000,-300.0,0.00034472,2]
[424868501,1781217054000,-300.0,0.00034472,2]
[424868503,1781217054000,-300.0,0.00034472,2]
[424868527,1781217054000,-300.0,0.00034472,2]
[424868498,1781217054000,-300.0,0.00034472,2]
[424868529,1781217054000,-300.0,0.00034472,2]
[424868556,1781217054000,-300.0,0.00034472,2]
[424868558,1781217054000,-300.0,0.00034472,2]
[424868559,1781217054000,-300.0,0.00034472,2]
[424868557,1781217054000,-300.0,0.00034472,2]
[424868560,1781217054000,-300.0,0.00034472,2]
[424868563,1781217054000,-300.0,0.00034472,2]
[424868562,1781217054000,-300.0,0.00034472,2]
[424868565,1781217054000,-300.0,0.00034472,2]
[424868561,1781217054000,-300.0,0.00034472,2]
[424868564,1781217054000,-494.26340531,0.00034472,2]
[424868568,1781217054000,-606.59953242,0.00034472,2]
[424868569,1781217054000,-300.0,0.00034472,2]
[424868566,1781217054000,-300.0,0.00034472,2]
[424868567,1781217054000,-300.0,0.00034472,2]
[424868571,1781217054000,-300.0,0.00034472,2]
[424868570,1781217054000,-300.0,0.00034472,2]
[424868575,1781217054000,-300.0,0.00034472,2]
[424868574,1781217054000,-535.71068605,0.00034472,2]
[424868573,1781217054000,-300.0,0.00034472,2]
[424868572,1781217054000,-300.0,0.00034472,2]
[424868576,1781217054000,-728.64234087,0.00034472,2]
[424868555,1781217054000,-300.0,0.00034472,2]
[424868551,1781217054000,-300.0,0.00034472,2]
[424868528,1781217054000,-512.9116401,0.00034472,2]
[424868552,1781217054000,-300.0,0.00034472,2]
[424868554,1781217054000,-300.0,0.00034472,2]
[424868531,1781217054000,-300.0,0.00034472,2]
[424868534,1781217054000,-300.0,0.00034472,2]
[424868538,1781217054000,-300.0,0.00034472,2]
[424868536,1781217054000,-300.0,0.00034472,2]
[424868537,1781217054000,-300.0,0.00034472,2]
[424868533,1781217054000,-300.0,0.00034472,2]
[424868535,1781217054000,-300.0,0.00034472,2]
[424868539,1781217054000,-347.42516937,0.00034472,2]
[424868543,1781217054000,-300.0,0.00034472,2]
[424868532,1781217054000,-453.35117681,0.00034472,2]
[424868544,1781217054000,-300.0,0.00034472,2]
[424868540,1781217054000,-97.74371217,0.00034472,2]
[424868541,1781217054000,-300.0,0.00034472,2]
[424868549,1781217054000,-300.0,0.00034472,2]
[424868553,1781217054000,-300.0,0.00034472,2]
[424868546,1781217054000,-300.0,0.00034472,2]
[424868547,1781217054000,-834.28394638,0.00034472,2]
[424868545,1781217054000,-300.0,0.00034472,2]
[424868548,1781217054000,-300.0,0.00034472,2]
[424868550,1781217054000,-1098.78445781,0.00034472,2]
[424868542,1781217054000,-300.0,0.00034472,2]
[424868610,1781217055000,-596.07542324,0.00034472,2]
[424868607,1781217055000,-300.0,0.00034472,2]
[424868608,1781217055000,-300.0,0.00034472,2]
[424868602,1781217055000,-300.0,0.00034472,2]
[424868604,1781217055000,-300.0,0.00034472,2]
[424868605,1781217055000,-300.0,0.00034472,2]
[424868603,1781217055000,-310.59667688,0.00034472,2]
[424868612,1781217055000,-300.0,0.00034472,2]
[424868606,1781217055000,-1345.05845532,0.00034472,2]
[424868611,1781217055000,-300.0,0.00034472,2]
[424868624,1781217055000,-445.16888154,0.00034472,2]
[424868609,1781217055000,-300.0,0.00034472,2]
[424868615,1781217055000,-583.05784622,0.00034472,2]
[424868614,1781217055000,-300.0,0.00034472,2]
[424868616,1781217055000,-300.0,0.00034472,2]
[424868618,1781217055000,-300.0,0.00034472,2]
[424868619,1781217055000,-300.0,0.00034472,2]
[424868620,1781217055000,-300.0,0.00034472,2]
[424868623,1781217055000,-300.0,0.00034472,2]
[424868622,1781217055000,-300.0,0.00034472,2]
[424868600,1781217055000,-300.0,0.00034472,2]
[424868613,1781217055000,-512.9116401,0.00034472,2]
[424868599,1781217055000,-300.0,0.00034472,2]
[424868590,1781217055000,-345.05091273,0.00034472,2]
[424868597,1781217055000,-952.35439639,0.00034472,2]
[424868617,1781217055000,-453.35117681,0.00034472,2]
[424868577,1781217055000,-300.0,0.00034472,2]
[424868578,1781217055000,-302.76104972,0.00034472,2]
[424868580,1781217055000,-300.5481852,0.00034472,2]
[424868582,1781217055000,-300.0,0.00034472,2]
[424868581,1781217055000,-301.53549973,0.00034472,2]
[424868583,1781217055000,-320.52506455,0.00034472,2]
[424868586,1781217055000,-300.0,0.00034472,2]
[424868579,1781217055000,-300.0,0.00034472,2]
[424868584,1781217055000,-300.0,0.00034472,2]
[424868587,1781217055000,-300.0,0.00034472,2]
[424868585,1781217055000,-300.0,0.00034472,2]
[424868589,1781217055000,-300.0,0.00034472,2]
[424868588,1781217055000,-300.0,0.00034472,2]
[424868591,1781217055000,-528.57447289,0.00034472,2]
[424868592,1781217055000,-300.0,0.00034472,2]
[424868595,1781217055000,-300.0,0.00034472,2]
[424868593,1781217055000,-300.0,0.00034472,2]
[424868596,1781217055000,-867.43380422,0.00034472,2]
[424868594,1781217055000,-300.0,0.00034472,2]
[424868598,1781217055000,-1803.5984271,0.00034472,2]
[424868601,1781217055000,-300.0,0.00034472,2]
[424868621,1781217055000,-300.0,0.00034472,2]
[424868645,1781217055000,-300.0,0.00034472,2]
[424868626,1781217055000,-300.0,0.00034472,2]
[424868625,1781217055000,-300.0,0.00034472,2]
[424868651,1781217055000,-300.0,0.00034472,2]
[424868653,1781217055000,-606.59953242,0.00034472,2]
[424868655,1781217055000,-300.0,0.00034472,2]
[424868657,1781217055000,-300.0,0.00034472,2]
[424868654,1781217055000,-300.0,0.00034472,2]
[424868656,1781217055000,-300.0,0.00034472,2]
[424868660,1781217055000,-300.0,0.00034472,2]
[424868664,1781217055000,-302.76104972,0.00034472,2]
[424868662,1781217055000,-728.64234087,0.00034472,2]
[424868649,1781217055000,-494.52733572,0.00034472,2]
[424868669,1781217055000,-300.0,0.00034472,2]
[424868661,1781217055000,-314.40827144,0.00034472,2]
[424868665,1781217055000,-300.0,0.00034472,2]
[424868667,1781217055000,-300.5481852,0.00034472,2]
[424868666,1781217055000,-301.53549973,0.00034472,2]
[424868668,1781217055000,-300.0,0.00034472,2]
[424868670,1781217055000,-300.0,0.00034472,2]
[424868672,1781217055000,-27.45699811,0.00034472,2]
[424868671,1781217055000,-272.54300189,0.00034472,2]
[424868674,1781217055000,-52.38818605,0.00034472,2]
[424868673,1781217055000,-300.0,0.00034472,2]
[424868663,1781217055000,-300.0,0.00034472,2]
[424868658,1781217055000,-300.0,0.00034472,2]
[424868652,1781217055000,-300.0,0.00034472,2]
[424868650,1781217055000,-367.31398168,0.00034472,2]
[424868627,1781217055000,-300.0,0.00034472,2]
[424868628,1781217055000,-300.0,0.00034472,2]
[424868630,1781217055000,-300.0,0.00034472,2]
[424868631,1781217055000,-834.28394638,0.00034472,2]
[424868629,1781217055000,-300.0,0.00034472,2]
[424868636,1781217055000,-300.0,0.00034472,2]
[424868632,1781217055000,-300.0,0.00034472,2]
[424868633,1781217055000,-300.0,0.00034472,2]
[424868659,1781217055000,-535.71068605,0.00034472,2]
[424868637,1781217055000,-300.0,0.00034472,2]
[424868635,1781217055000,-300.0,0.00034472,2]
[424868634,1781217055000,-1098.78445781,0.00034472,2]
[424868640,1781217055000,-300.0,0.00034472,2]
[424868641,1781217055000,-300.0,0.00034472,2]
[424868643,1781217055000,-300.0,0.00034472,2]
[424868639,1781217055000,-300.0,0.00034472,2]
[424868642,1781217055000,-300.0,0.00034472,2]
[424868647,1781217055000,-300.0,0.00034472,2]
[424868644,1781217055000,-300.0,0.00034472,2]
[424868648,1781217055000,-494.26340531,0.00034472,2]
[424868646,1781217055000,-300.0,0.00034472,2]
[424868638,1781217055000,-300.0,0.00034472,2]
[424868680,1781217056000,-242.95762724,0.00034472,2]
[424868675,1781217056000,-247.61181395,0.00034472,2]
[424868676,1781217056000,-345.05091273,0.00034472,2]
[424868679,1781217056000,-57.04237276,0.00034472,2]
[424868677,1781217056000,-300.0,0.00034472,2]
[424868681,1781217056000,-300.0,0.00034472,2]
[424868688,1781217056000,-652.857153,0.00030003,30]
[424868678,1781217056000,-528.57447289,0.00034472,2]
[424868687,1781217056000,-150.22234137,0.000299,2]
[424868685,1781217056000,-447.47407939,0.00027397,10]
[424868682,1781217056000,-111.7954668,0.00034472,2]
[424868683,1781217056000,-428.70804756,0.00027044,2]
[424868684,1781217056000,-61.11588944,0.00027044,2]
[424868686,1781217056000,-3979.50592061,0.00027397,10]
[424868693,1781217286000,-150.0,0.00013093,2]
[424868694,1781217643000,-150.0,0.00012436,2]
[424868698,1781218000000,-166.66,0.0001149,2]
[424868723,1781218233000,-328.41,0.00012283,2]
[424868721,1781218233000,-150.0,0.00012174,2]
[424868722,1781218233000,-166.66,0.00012216,2]
[424868720,1781218233000,-231.66,0.00012136,2]
[424868729,1781218233000,-150.0,0.00012574,2]
[424868732,1781218233000,-1000.0,0.000126,4]
[424868731,1781218233000,-163.65,0.00012575,2]
[424868733,1781218233000,-642.42,0.00012647,2]
[424868735,1781218233000,-163.59,0.00012658,2]
[424868730,1781218233000,-892.175379,0.00012575,2]
[424868740,1781218233000,-1500.0,0.000127,4]
[424868715,1781218233000,-1000.0,0.00012072,2]
[424868737,1781218233000,-250.0,0.00012669,2]
[424868743,1781218233000,-250718.0232,0.00012752,2]
[424868745,1781218233000,-379.89841544,0.00012755,2]
[424868747,1781218233000,-2000.0,0.000128,4]
[424868734,1781218233000,-420.0,0.0001265,2]
[424868739,1781218233000,-166.66,0.00012699,2]
[424868718,1781218233000,-200.0,0.00012072,2]
[424868726,1781218233000,-166.66,0.00012457,2]
[424868699,1781218233000,-300.0,0.00011517,2]
[424868700,1781218233000,-196.2484482,0.00011518,2]
[424868701,1781218233000,-63.75005122,0.00011518,2]
[424868703,1781218233000,-166.66,0.00011732,2]
[424868705,1781218233000,-849.06,0.00011879,2]
[424868706,1781218233000,-2169.72914755,0.00011936,2]
[424868702,1781218233000,-45073.77,0.00011518,2]
[424868710,1781218233000,-166.66,0.00011974,2]
[424868707,1781218233000,-2904.34,0.00011936,2]
[424868712,1781218233000,-150.0,0.00012055,2]
[424868709,1781218233000,-329.28,0.00011945,2]
[424868704,1781218233000,-186.7,0.00011875,2]
[424868708,1781218233000,-160.0,0.00011939,2]
[424868714,1781218233000,-1743.0654733,0.00012059,2]
[424868725,1781218233000,-300.0,0.00012417,2]
[424868749,1781218233000,-9379.19,0.00012851,2]
[424868724,1781218233000,-271.0,0.00012293,2]
[424868728,1781218233000,-500.0,0.000125,4]
[424868760,1781218233000,-448.0,0.00013224,2]
[424868727,1781218233000,-300.0,0.00012499,2]
[424868764,1781218233000,-456.0,0.00013274,2]
[424868799,1781218233000,-500.0,0.00013497,2]
[424868806,1781218233000,-500.0,0.00013628,2]
[424868802,1781218233000,-500.0,0.00013497,2]
[424868804,1781218233000,-300.0,0.00013511,2]
[424868800,1781218233000,-500.0,0.00013497,2]
[424868801,1781218233000,-500.0,0.00013497,2]
[424868807,1781218233000,-255.0,0.00013668,2]
[424868808,1781218233000,-500.0,0.00013698,2]
[424868809,1781218233000,-500.0,0.00013698,2]
[424868810,1781218233000,-500.0,0.00013698,2]
[424868813,1781218233000,-500.0,0.00013698,2]
[424868814,1781218233000,-500.0,0.00013698,2]
[424868812,1781218233000,-500.0,0.00013698,2]
[424868816,1781218233000,-500.0,0.00013698,2]
[424868811,1781218233000,-500.0,0.00013698,2]
[424868815,1781218233000,-500.0,0.00013698,2]
[424868762,1781218233000,-446.0,0.00013224,2]
[424868803,1781218233000,-500.0,0.00013497,2]
[424868796,1781218233000,-500.0,0.00013497,2]
[424868805,1781218233000,-160.0,0.0001352,2]
[424868783,1781218233000,-163.59,0.00013355,2]
[424868766,1781218233000,-457.0,0.00013274,2]
[424868798,1781218233000,-500.0,0.00013497,2]
[424868757,1781218233000,-454.0,0.00013191,2]
[424868751,1781218233000,-2500.0,0.000129,4]
[424868768,1781218233000,-443.0,0.00013274,2]
[424868753,1781218233000,-250.0,0.00012905,2]
[424868770,1781218233000,-452.0,0.00013274,2]
[424868773,1781218233000,-4573.1852,0.00013298,2]
[424868755,1781218233000,-442.0,0.00013191,2]
[424868775,1781218233000,-454.0,0.00013341,2]
[424868779,1781218233000,-442.0,0.00013341,2]
[424868790,1781218233000,-192.16954241,0.00013411,2]
[424868792,1781218233000,-731.5027321,0.00013411,2]
[424868781,1781218233000,-500.0,0.00013355,2]
[424868788,1781218233000,-1090.43288559,0.00013399,2]
[424868785,1781218233000,-1469.8976,0.00013398,2]
[424868777,1781218233000,-447.0,0.00013341,2]
[424868794,1781218233000,-500.0,0.00013497,2]
[424868844,1781218234000,-500.0,0.00013698,2]
[424868852,1781218234000,-237.89874576,0.00013769,2]
[424868851,1781218234000,-500.0,0.00013769,2]
[424868849,1781218234000,-3089.76158869,0.00013699,2]
[424868847,1781218234000,-200.0,0.00013699,2]
[424868846,1781218234000,-1590.28,0.00013699,2]
[424868848,1781218234000,-19172.09841131,0.00013699,2]
[424868845,1781218234000,-504.05769263,0.00013698,2]
[424868853,1781218234000,-500.0,0.00013769,2]
[424868850,1781218234000,-163.68,0.000137,2]
[424868859,1781218234000,-500.0,0.00013769,2]
[424868862,1781218234000,-500.0,0.00013769,2]
[424868858,1781218234000,-500.0,0.00013769,2]
[424868854,1781218234000,-500.0,0.00013769,2]
[424868857,1781218234000,-500.0,0.00013769,2]
[424868855,1781218234000,-500.0,0.00013769,2]
[424868860,1781218234000,-500.0,0.00013769,2]
[424868864,1781218234000,-500.0,0.00013769,2]